[Event "44th Chess Olympiad Women 2022"]
[Site "Chennai"]
[Date "2022.08.08"]
[Round "10.19"]
[White "Baginskaite, Kamile"]
[Black "Urh, Zala"]
[Result "1-0"]
[WhiteElo "2134"]
[BlackElo "2321"]
[Annotator "RC"]
[PlyCount "97"]
[EventDate "2022.??.??"]
[TimeControl "60"]

1. d4 {[%emt 0:00:01]} Nf6 {[%emt 0:00:33]} 2. Nf3 {[%emt 0:00:29]} g6 {
[%emt 0:00:17]} 3. c4 {[%emt 0:00:38]} Bg7 {[%emt 0:00:34]} 4. g3 {[%emt 0:00:
00]} d5 {[%emt 0:00:14]} 5. cxd5 {[%emt 0:01:43]} Nxd5 {[%emt 0:00:15]} 6. Bg2
{[%emt 0:00:06]} Nb6 {[%emt 0:00:34]} 7. Nc3 {[%emt 0:06:00]} Nc6 {[%emt 0:00:
00]} 8. e3 {[%emt 0:00:06]} O-O {[%emt 0:00:22]} 9. O-O {[%emt 0:00:05]} Re8 {
[%emt 0:00:18]} 10. Re1 {[%emt 0:02:07]} a5 {[%emt 0:01:18]} 11. d5 {[%emt 0:
00:00]} Nb4 {[%emt 0:06:02]} 12. e4 {[%emt 0:08:54]} c6 {[%emt 0:10:36]} 13. a3
{[%emt 0:00:40]} Na6 {[%emt 0:00:12]} 14. dxc6 {[%emt 0:01:49]} bxc6 {[%emt 0:
00:00]} 15. Qc2 {[%emt 0:00:58]} Rb8 {[%emt 0:05:51]} 16. Bf4 {[%emt 0:11:43]}
e5 {[%emt 0:02:11]} 17. Rad1 {[%emt 0:00:29]} Qc7 {[%emt 0:06:43]} 18. Be3 {
[%emt 0:00:33]} Bf8 {[%emt 0:17:45]} 19. Nb1 {[%emt 0:07:41]} Nd7 {[%emt 0:00:
00]} 20. Nbd2 {[%emt 0:01:27]} Ndc5 {[%emt 0:04:10]} 21. Rc1 {[%emt 0:06:22]}
Bd7 {[%emt 0:13:24]} 22. Bf1 {[%emt 0:00:55]} Rb7 {[%emt 0:01:47]} 23. Bc4 {
[%emt 0:03:17]} Kg7 {[%emt 0:01:26]} 24. Rb1 {[%emt 0:10:05]} f6 {[%emt 0:00:
00]} 25. Rec1 {[%emt 0:02:26]} Ra8 {[%emt 0:04:07]} 26. Qd1 {[%emt 0:05:03]}
Be8 {[%emt 0:03:00]} 27. h4 {[%emt 0:02:02]} h5 {[%emt 0:00:44]} 28. Qe2 {
[%emt 0:01:23]} a4 {[%emt 0:02:43]} 29. Rc2 {[%emt 0:00:44]} Qb8 {[%emt 0:00:
00]} 30. Nh2 {[%emt 0:03:52]} Bd7 {[%emt 0:01:19]} 31. Kg2 {[%emt 0:00:52]} Qc8
{[%emt 0:00:38]} 32. Rbc1 {[%emt 0:00:29]} Nc7 {[%emt 0:01:04]} 33. f4 {
[%emt 0:03:21]} exf4 {[%emt 0:00:16]} 34. gxf4 {[%emt 0:00:27]} Qe8 {[%emt 0:
00:00]} 35. Qf3 {[%emt 0:02:14]} Ra5 {[%emt 0:00:28]} 36. Bd4 {[%emt 0:00:42]}
Qd8 {[%emt 0:00:33]} 37. Bc3 {[%emt 0:04:05]} Ra8 {[%emt 0:00:09]} 38. f5 {
[%emt 0:01:57]} Be8 {[%emt 0:00:04]} 39. e5 {[%emt 0:00:44]} Be7 {[%emt 0:00:
00]} 40. Rf1 {[%emt 0:03:06]} Nd5 {[%emt 0:01:22]} 41. Bxd5 {[%emt 0:05:18]}
cxd5 {[%emt 0:12:48]} 42. exf6+ {[%emt 0:02:31]} Bxf6 {[%emt 0:00:05]} 43.
Bxf6+ {[%emt 0:04:05]} Qxf6 {[%emt 0:01:05]} 44. Rxc5 {[%emt 0:00:07]} Qxh4 {
[%emt 0:01:57]} 45. Qxd5 {[%emt 0:03:59]} Raa7 {[%emt 0:00:59]} 46. Qe5+ {
[%emt 0:00:52]} Kh7 {[%emt 0:01:43]} 47. Qxe8 {[%emt 0:00:31]} gxf5 {[%emt 0:
00:00]} 48. Rcxf5 {[%emt 0:01:03]} Rg7+ {[%emt 0:00:17]} 49. Kh1 {[%emt 0:00:
00]} 1-0

[Event "44th Chess Olympiad Women 2022"]
[Site "Chennai"]
[Date "2022.08.08"]
[Round "10.19"]
[White "Janzelj, Lara"]
[Black "Zaksaite, Salomeja"]
[Result "0-1"]
[WhiteElo "2215"]
[BlackElo "2212"]
[Annotator "NA RC"]
[PlyCount "90"]
[EventDate "2022.??.??"]
[TimeControl "60"]

1. c4 {[%emt 0:00:06]} Nf6 {[%emt 0:00:11]} 2. g3 {[%emt 0:00:14]} g6 {[%emt 0:
00:00]} 3. Bg2 {[%emt 0:00:24]} Bg7 {[%emt 0:00:11]} 4. e4 {[%emt 0:01:10]} d6
{[%emt 0:00:05]} 5. Nc3 {[%emt 0:00:11]} e5 {[%emt 0:00:29]} 6. d3 {[%emt 0:00:
00]} Nc6 {[%emt 0:01:29]} 7. Nge2 {[%emt 0:00:12]} O-O {[%emt 0:00:26]} 8. O-O
{[%emt 0:01:22]} Nd7 {[%emt 0:01:39]} 9. Be3 {[%emt 0:02:47]} Nc5 {[%emt 0:00:
00]} 10. d4 {[%emt 0:01:37]} exd4 {[%emt 0:04:55]} 11. Nxd4 {[%emt 0:00:06]}
Ne5 {[%emt 0:04:25]} 12. b3 {[%emt 0:02:51]} Ng4 {[%emt 0:01:13]} 13. Bc1 {
[%emt 0:04:59]} a5 {[%emt 0:17:06]} 14. Rb1 {[%emt 0:07:32]} a4 {[%emt 0:09:35]
} 15. h3 {[%emt 0:06:36]} Ne5 {[%emt 0:01:33]} 16. Be3 {[%emt 0:01:17]} axb3 {
[%emt 0:00:48]} 17. axb3 {[%emt 0:00:05]} Bd7 {[%emt 0:00:14]} 18. Qd2 {
[%emt 0:01:42]} Ra3 {[%emt 0:07:36]} 19. Bh6 {[%emt 0:11:37]} Bxh6 {[%emt 0:00:
00]} 20. Qxh6 {[%emt 0:00:10]} Nc6 {[%emt 0:00:17]} 21. Ndb5 {[%emt 0:20:56]}
Rxb3 {[%emt 0:01:28]} 22. Rxb3 {[%emt 0:04:14]} Nxb3 {[%emt 0:00:06]} 23. Nd5 {
[%emt 0:00:07]} Ncd4 {[%emt 0:12:21]} 24. Nbxc7 {[%emt 0:02:21]} Ne6 {[%emt 0:
00:00]} 25. Nxe6 {[%emt 0:09:55]} fxe6 {[%emt 0:01:02]} 26. Nf4 {[%emt 0:00:24]
} Nc5 {[%emt 0:01:45]} 27. h4 {[%emt 0:03:28]} Qf6 {[%emt 0:10:33]} 28. Nh3 {
[%emt 0:05:36]} e5 {[%emt 0:03:08]} 29. h5 {[%emt 0:03:22]} Bxh3 {[%emt 0:00:
00]} 30. hxg6 {[%emt 0:00:18]} hxg6 {[%emt 0:01:13]} 31. Qxh3 {[%emt 0:00:18]}
Kg7 {[%emt 0:00:54]} 32. Qg4 {[%emt 0:00:59]} Ne6 {[%emt 0:06:39]} 33. Qd1 {
[%emt 0:01:25]} Nd4 {[%emt 0:00:23]} 34. f4 {[%emt 0:01:23]} Qd8 {[%emt 0:00:
00]} 35. Qg4 {[%emt 0:02:57]} Qe7 {[%emt 0:06:04]} 36. f5 {[%emt 0:01:10]} g5 {
[%emt 0:00:12]} 37. Qh5 {[%emt 0:02:13]} Qf6 {[%emt 0:00:16]} 38. Rb1 {[%emt 0:
00:00]} Rf7 {[%emt 0:00:34]} 39. Kf2 {[%emt 0:00:58]} Nxf5 {[%emt 0:00:34]} 40.
Kg1 {[%emt 0:01:29]} Nxg3 {[%emt 0:00:51]} 41. Qh3 {[%emt 0:03:18]} Ne2+ {
[%emt 0:10:32]} 42. Kh1 {[%emt 0:02:08]} Qf4 {[%emt 0:09:25]} 43. Rd1 {[%emt 0:
00:00]} Ng3+ {[%emt 0:02:38]} 44. Kg1 {[%emt 0:00:45]} g4 {[%emt 0:01:11]} 45.
Qh4 {[%emt 0:00:26]} Qf2+ {[%emt 0:00:11]} 0-1

[Event "44th Chess Olympiad Women 2022"]
[Site "Chennai"]
[Date "2022.08.08"]
[Round "10.19"]
[White "Simkunaite, Gabija"]
[Black "Vidic, Teja"]
[Result "0-1"]
[WhiteElo "2010"]
[BlackElo "2099"]
[Annotator "NA RC"]
[PlyCount "86"]
[EventDate "2022.??.??"]
[TimeControl "60"]

1. e4 {[%emt 0:00:07]} c6 {[%emt 0:00:09]} 2. d4 {[%emt 0:00:08]} d5 {[%emt 0:
00:00]} 3. exd5 {[%emt 0:00:18]} cxd5 {[%emt 0:00:07]} 4. Bd3 {[%emt 0:00:13]}
Nc6 {[%emt 0:00:09]} 5. c3 {[%emt 0:00:20]} Nf6 {[%emt 0:00:05]} 6. h3 {
[%emt 0:01:03]} e5 {[%emt 0:00:06]} 7. dxe5 {[%emt 0:00:34]} Nxe5 {[%emt 0:00:
00]} 8. Nf3 {[%emt 0:00:34]} Nxd3+ {[%emt 0:00:10]} 9. Qxd3 {[%emt 0:00:08]}
Bd6 {[%emt 0:00:04]} 10. O-O {[%emt 0:03:24]} O-O {[%emt 0:00:05]} 11. Bg5 {
[%emt 0:01:23]} h6 {[%emt 0:00:05]} 12. Bxf6 {[%emt 0:05:06]} Qxf6 {[%emt 0:00:
00]} 13. Qxd5 {[%emt 0:00:06]} Rd8 {[%emt 0:04:49]} 14. Qh5 {[%emt 0:04:45]}
Bf5 {[%emt 0:10:17]} 15. Nd4 {[%emt 0:17:52]} Bg6 {[%emt 0:03:56]} 16. Qf3 {
[%emt 0:07:14]} Qe5 {[%emt 0:01:07]} 17. g3 {[%emt 0:01:06]} Bc5 {[%emt 0:00:
00]} 18. Nd2 {[%emt 0:07:22]} Bxd4 {[%emt 0:00:49]} 19. cxd4 {[%emt 0:00:10]}
Rxd4 {[%emt 0:03:59]} 20. Qxb7 {[%emt 0:05:31]} Rb8 {[%emt 0:02:00]} 21. Nf3 {
[%emt 0:00:05]} Qd6 {[%emt 0:02:32]} 22. Qxb8+ {[%emt 0:11:26]} Qxb8 {[%emt 0:
00:00]} 23. Nxd4 {[%emt 0:00:06]} Qxb2 {[%emt 0:10:39]} 24. Nb3 {[%emt 0:10:29]
} Bf5 {[%emt 0:00:00]} 25. g4 {[%emt 0:03:53]} Be6 {[%emt 0:00:57]} 26. Nc5 {
[%emt 0:02:22]} Bd5 {[%emt 0:07:05]} 27. Rad1 {[%emt 0:06:27]} Qxa2 {[%emt 0:
00:00]} 28. Rfe1 {[%emt 0:01:06]} Bc6 {[%emt 0:11:15]} 29. Nd7 {[%emt 0:02:53]}
g6 {[%emt 0:04:44]} 30. Rd6 {[%emt 0:03:48]} Qc2 {[%emt 0:03:23]} 31. Nf6+ {
[%emt 0:02:32]} Kg7 {[%emt 0:00:09]} 32. Ne8+ {[%emt 0:00:14]} Bxe8 {[%emt 0:
00:00]} 33. Rxe8 {[%emt 0:00:01]} a5 {[%emt 0:00:06]} 34. Ra6 {[%emt 0:01:38]}
Qb1+ {[%emt 0:01:30]} 35. Kh2 {[%emt 0:00:50]} Qf1 {[%emt 0:00:08]} 36. Rea8 {
[%emt 0:01:35]} Qxf2+ {[%emt 0:00:12]} 37. Kh1 {[%emt 0:00:02]} Qg3 {[%emt 0:
00:00]} 38. Rxa5 {[%emt 0:01:03]} Qxh3+ {[%emt 0:00:06]} 39. Kg1 {[%emt 0:00:
00]} Qxg4+ {[%emt 0:00:05]} 40. Kf2 {[%emt 0:00:05]} h5 {[%emt 0:00:30]} 41.
Ra4 {[%emt 0:30:35]} Qf5+ {[%emt 0:30:57]} 42. Kg2 {[%emt 0:00:15]} g5 {
[%emt 0:00:40]} 43. R8a5 {[%emt 0:00:35]} Qc2+ {[%emt 0:00:08]} 0-1

[Event "44th Chess Olympiad Women 2022"]
[Site "Chennai"]
[Date "2022.08.08"]
[Round "10.19"]
[White "Unuk, Laura"]
[Black "Martynkova, Olena"]
[Result "1/2-1/2"]
[WhiteElo "2340"]
[BlackElo "2213"]
[Annotator "RC"]
[PlyCount "88"]
[EventDate "2022.??.??"]
[TimeControl "60"]

1. d4 {[%emt 0:00:05]} Nf6 {[%emt 0:00:14]} 2. c4 {[%emt 0:00:14]} g6 {[%emt 0:
00:00]} 3. Nc3 {[%emt 0:00:45]} Bg7 {[%emt 0:00:27]} 4. e4 {[%emt 0:00:07]} d6
{[%emt 0:00:32]} 5. Be2 {[%emt 0:00:27]} O-O {[%emt 0:00:27]} 6. Be3 {[%emt 0:
00:00]} e5 {[%emt 0:08:05]} 7. d5 {[%emt 0:02:39]} Na6 {[%emt 0:00:26]} 8. g4 {
[%emt 0:00:39]} Nc5 {[%emt 0:01:17]} 9. f3 {[%emt 0:00:51]} c6 {[%emt 0:00:54]}
10. h4 {[%emt 0:06:20]} cxd5 {[%emt 0:07:11]} 11. cxd5 {[%emt 0:00:51]} Bd7 {
[%emt 0:01:34]} 12. h5 {[%emt 0:06:43]} Qa5 {[%emt 0:06:58]} 13. Kf2 {[%emt 0:
00:00]} b5 {[%emt 0:02:57]} 14. Kg2 {[%emt 0:18:23]} Na4 {[%emt 0:12:29]} 15.
Nxa4 {[%emt 0:06:11]} bxa4 {[%emt 0:06:35]} 16. Nh3 {[%emt 0:00:41]} Rfc8 {
[%emt 0:05:35]} 17. hxg6 {[%emt 0:02:28]} hxg6 {[%emt 0:01:21]} 18. Nf2 {
[%emt 0:05:59]} Rab8 {[%emt 0:04:50]} 19. Rb1 {[%emt 0:01:22]} a3 {[%emt 0:00:
00]} 20. bxa3 {[%emt 0:03:37]} Qxa3 {[%emt 0:02:35]} 21. Qd2 {[%emt 0:04:38]}
Qa4 {[%emt 0:07:22]} 22. Rxb8 {[%emt 0:06:46]} Rxb8 {[%emt 0:00:08]} 23. Bh6 {
[%emt 0:00:12]} Bh8 {[%emt 0:02:56]} 24. Qg5 {[%emt 0:00:17]} Qxa2 {[%emt 0:00:
00]} 25. Bd3 {[%emt 0:05:11]} Nh7 {[%emt 0:07:12]} 26. Qh4 {[%emt 0:02:27]} Bf6
{[%emt 0:01:02]} 27. Qh2 {[%emt 0:03:07]} g5 {[%emt 0:03:07]} 28. Bg7 {[%emt 0:
00:00]} Bxg7 {[%emt 0:00:19]} 29. Qxh7+ {[%emt 0:00:02]} Kf8 {[%emt 0:00:04]}
30. Qh2 {[%emt 0:01:22]} Qd2 {[%emt 0:00:42]} 31. Rd1 {[%emt 0:00:49]} Qe3 {
[%emt 0:01:13]} 32. Qg1 {[%emt 0:00:51]} Rb2 {[%emt 0:00:15]} 33. Rb1 {[%emt 0:
00:00]} Rxb1 {[%emt 0:01:50]} 34. Qxb1 {[%emt 0:00:04]} a5 {[%emt 0:00:40]} 35.
Qb7 {[%emt 0:01:37]} Be8 {[%emt 0:00:14]} 36. Qa8 {[%emt 0:01:24]} Qb6 {
[%emt 0:00:44]} 37. Ba6 {[%emt 0:00:47]} Bf6 {[%emt 0:00:23]} 38. Bb7 {[%emt 0:
00:00]} Qd8 {[%emt 0:00:55]} 39. Qa6 {[%emt 0:00:22]} Qc7 {[%emt 0:00:13]} 40.
Nd3 {[%emt 0:00:34]} Bd8 {[%emt 0:00:26]} 41. Bc6 {[%emt 0:04:26]} Qb6 {
[%emt 0:05:50]} 42. Qa8 {[%emt 0:00:45]} Ke7 {[%emt 0:06:03]} 43. Nf2 {[%emt 0:
00:00]} Qb2 {[%emt 0:03:17]} 44. Kg3 {[%emt 0:06:35]} Qb1 {[%emt 0:01:20]}
1/2-1/2

[Event "44th Chess Olympiad Women 2022"]
[Site "Chennai"]
[Date "2022.08.08"]
[Round "10.20"]
[White "Avramidou, Anastasia"]
[Black "Kakulidis, Ellen"]
[Result "1-0"]
[WhiteElo "2274"]
[BlackElo "2057"]
[Annotator "NA RC"]
[PlyCount "75"]
[EventDate "2022.??.??"]
[TimeControl "60"]

1. d4 {[%emt 0:00:04]} d5 {[%emt 0:00:05]} 2. c4 {[%emt 0:00:23]} e6 {[%emt 0:
00:00]} 3. Nf3 {[%emt 0:00:14]} a6 {[%emt 0:00:24]} 4. Bg5 {[%emt 0:01:57]} Be7
{[%emt 0:00:23]} 5. Bxe7 {[%emt 0:00:06]} Nxe7 {[%emt 0:00:14]} 6. e3 {[%emt 0:
00:00]} O-O {[%emt 0:03:06]} 7. Nbd2 {[%emt 0:06:37]} Nd7 {[%emt 0:02:35]} 8.
Rc1 {[%emt 0:00:51]} dxc4 {[%emt 0:21:11]} 9. Nxc4 {[%emt 0:05:33]} b5 {
[%emt 0:10:00]} 10. Ncd2 {[%emt 0:04:41]} e5 {[%emt 0:11:48]} 11. dxe5 {
[%emt 0:09:59]} Ng6 {[%emt 0:07:21]} 12. Bd3 {[%emt 0:00:42]} Ndxe5 {[%emt 0:
00:00]} 13. Nxe5 {[%emt 0:00:21]} Nxe5 {[%emt 0:00:35]} 14. Bxh7+ {[%emt 0:00:
00]} Kxh7 {[%emt 0:02:23]} 15. Qh5+ {[%emt 0:00:06]} Kg8 {[%emt 0:00:11]} 16.
Qxe5 {[%emt 0:00:04]} Be6 {[%emt 0:07:11]} 17. a3 {[%emt 0:08:27]} Re8 {
[%emt 0:07:58]} 18. Qc3 {[%emt 0:26:11]} c5 {[%emt 0:05:18]} 19. O-O {[%emt 0:
00:00]} Rc8 {[%emt 0:01:14]} 20. Ne4 {[%emt 0:06:38]} b4 {[%emt 0:03:38]} 21.
axb4 {[%emt 0:02:21]} cxb4 {[%emt 0:01:10]} 22. Qxb4 {[%emt 0:00:12]} Rb8 {
[%emt 0:01:03]} 23. Qa3 {[%emt 0:02:32]} Bd5 {[%emt 0:01:30]} 24. Ng3 {[%emt 0:
00:00]} Rb6 {[%emt 0:03:41]} 25. Qa5 {[%emt 0:09:58]} Bb7 {[%emt 0:02:38]} 26.
Rfd1 {[%emt 0:03:25]} Qf6 {[%emt 0:00:48]} 27. b4 {[%emt 0:00:56]} Rb5 {
[%emt 0:02:11]} 28. Qa3 {[%emt 0:01:11]} Qb6 {[%emt 0:00:49]} 29. Rd4 {[%emt 0:
00:00]} Qh6 {[%emt 0:01:03]} 30. Rc7 {[%emt 0:02:42]} Qg6 {[%emt 0:00:59]} 31.
Rc1 {[%emt 0:01:53]} Rb6 {[%emt 0:01:09]} 32. h3 {[%emt 0:01:43]} Rc6 {[%emt 0:
00:00]} 33. Rg4 {[%emt 0:00:47]} Rxc1+ {[%emt 0:00:29]} 34. Qxc1 {[%emt 0:00:
00]} Qe6 {[%emt 0:00:30]} 35. Qb2 {[%emt 0:00:36]} g6 {[%emt 0:00:46]} 36. Nh5
{[%emt 0:00:51]} Kf8 {[%emt 0:00:04]} 37. Qh8+ {[%emt 0:00:40]} Ke7 {[%emt 0:
00:00]} 38. Qxe8+ {[%emt 0:00:06]} 1-0

[Event "44th Chess Olympiad Women 2022"]
[Site "Chennai"]
[Date "2022.08.08"]
[Round "10.20"]
[White "Makka, Ioulia"]
[Black "Fredericia, Louise"]
[Result "1/2-1/2"]
[WhiteElo "1975"]
[BlackElo "1990"]
[Annotator "NA RC"]
[PlyCount "73"]
[EventDate "2022.??.??"]
[TimeControl "60"]

1. e4 {[%emt 0:00:04]} c5 {[%emt 0:00:21]} 2. Nf3 {[%emt 0:00:09]} Nc6 {
[%emt 0:00:09]} 3. d4 {[%emt 0:00:11]} cxd4 {[%emt 0:00:06]} 4. Nxd4 {[%emt 0:
00:00]} g6 {[%emt 0:00:09]} 5. c4 {[%emt 0:00:13]} Bg7 {[%emt 0:00:19]} 6. Be3
{[%emt 0:00:23]} Nf6 {[%emt 0:00:12]} 7. Nc3 {[%emt 0:00:18]} O-O {[%emt 0:00:
00]} 8. Be2 {[%emt 0:01:54]} d6 {[%emt 0:00:24]} 9. O-O {[%emt 0:01:36]} Bd7 {
[%emt 0:00:30]} 10. h3 {[%emt 0:00:39]} Nxd4 {[%emt 0:02:00]} 11. Bxd4 {
[%emt 0:00:06]} Bc6 {[%emt 0:00:27]} 12. Qc2 {[%emt 0:00:29]} a5 {[%emt 0:00:
00]} 13. b3 {[%emt 0:03:42]} Rc8 {[%emt 0:03:36]} 14. Qd3 {[%emt 0:10:38]} Nd7
{[%emt 0:03:29]} 15. Bxg7 {[%emt 0:02:37]} Kxg7 {[%emt 0:00:08]} 16. Qd4+ {
[%emt 0:05:47]} Kg8 {[%emt 0:00:37]} 17. Bg4 {[%emt 0:02:40]} e6 {[%emt 0:00:
00]} 18. Qxd6 {[%emt 0:16:32]} Qb6 {[%emt 0:00:21]} 19. Rfd1 {[%emt 0:16:22]}
Rfd8 {[%emt 0:01:46]} 20. Qf4 {[%emt 0:10:45]} Nc5 {[%emt 0:05:09]} 21. Qe3 {
[%emt 0:03:43]} Qb4 {[%emt 0:02:21]} 22. Rab1 {[%emt 0:02:33]} Qa3 {[%emt 0:00:
00]} 23. e5 {[%emt 0:04:20]} Rxd1+ {[%emt 0:01:05]} 24. Bxd1 {[%emt 0:03:56]}
Rd8 {[%emt 0:02:46]} 25. Bc2 {[%emt 0:00:36]} b6 {[%emt 0:00:55]} 26. h4 {
[%emt 0:02:53]} h5 {[%emt 0:01:38]} 27. g4 {[%emt 0:04:58]} hxg4 {[%emt 0:00:
00]} 28. Qg5 {[%emt 0:03:44]} Nb7 {[%emt 0:03:14]} 29. h5 {[%emt 0:00:41]} Qf8
{[%emt 0:01:17]} 30. hxg6 {[%emt 0:01:24]} Qg7 {[%emt 0:00:42]} 31. gxf7+ {
[%emt 0:00:46]} Kxf7 {[%emt 0:00:24]} 32. Qh5+ {[%emt 0:00:46]} Ke7 {[%emt 0:
00:00]} 33. Qh4+ {[%emt 0:00:30]} Kf7 {[%emt 0:00:25]} 34. Qh5+ {[%emt 0:00:28]
} Ke7 {[%emt 0:01:15]} 35. Qh4+ {[%emt 0:00:27]} Kf7 {[%emt 0:00:16]} 36. Qh5+
{[%emt 0:00:34]} Ke7 {[%emt 0:03:17]} 37. Qh4+ {[%emt 0:00:23]} 1/2-1/2

[Event "44th Chess Olympiad Women 2022"]
[Site "Chennai"]
[Date "2022.08.08"]
[Round "10.20"]
[White "Nilssen, Ellen Fredericia"]
[Black "Tsolakidou, Stavroula"]
[Result "1/2-1/2"]
[WhiteElo "2142"]
[BlackElo "2362"]
[Annotator "RC"]
[PlyCount "83"]
[EventDate "2022.??.??"]
[TimeControl "60"]

1. d4 {[%emt 0:00:09]} Nf6 {[%emt 0:00:05]} 2. c4 {[%emt 0:00:11]} e6 {[%emt 0:
00:00]} 3. Nc3 {[%emt 0:00:09]} Bb4 {[%emt 0:00:11]} 4. e3 {[%emt 0:00:22]} O-O
{[%emt 0:00:08]} 5. Bd2 {[%emt 0:00:13]} b6 {[%emt 0:00:11]} 6. Nf3 {[%emt 0:
00:00]} c5 {[%emt 0:00:38]} 7. a3 {[%emt 0:02:03]} Bxc3 {[%emt 0:00:10]} 8.
Bxc3 {[%emt 0:00:08]} Ne4 {[%emt 0:00:06]} 9. Rc1 {[%emt 0:01:36]} Nxc3 {
[%emt 0:00:15]} 10. Rxc3 {[%emt 0:00:08]} d6 {[%emt 0:00:07]} 11. dxc5 {
[%emt 0:08:22]} bxc5 {[%emt 0:04:26]} 12. Be2 {[%emt 0:02:54]} Bb7 {[%emt 0:00:
00]} 13. O-O {[%emt 0:00:23]} Qe7 {[%emt 0:00:45]} 14. b4 {[%emt 0:00:32]} Nd7
{[%emt 0:09:47]} 15. Rd3 {[%emt 0:10:34]} d5 {[%emt 0:03:17]} 16. cxd5 {
[%emt 0:00:10]} exd5 {[%emt 0:11:06]} 17. bxc5 {[%emt 0:00:42]} Nxc5 {[%emt 0:
00:00]} 18. Rc3 {[%emt 0:01:46]} Rac8 {[%emt 0:07:53]} 19. Nd4 {[%emt 0:07:42]}
Ne4 {[%emt 0:05:50]} 20. Rxc8 {[%emt 0:00:54]} Rxc8 {[%emt 0:00:09]} 21. Qa4 {
[%emt 0:01:24]} Qc5 {[%emt 0:08:04]} 22. Qb4 {[%emt 0:07:52]} Qc7 {[%emt 0:00:
00]} 23. Nf5 {[%emt 0:13:44]} a5 {[%emt 0:02:15]} 24. Qb2 {[%emt 0:02:59]} Nc3
{[%emt 0:09:28]} 25. h3 {[%emt 0:01:02]} Rb8 {[%emt 0:05:18]} 26. Qc2 {[%emt 0:
00:00]} Bc8 {[%emt 0:07:10]} 27. Nd4 {[%emt 0:00:21]} Bd7 {[%emt 0:04:32]} 28.
Rc1 {[%emt 0:03:41]} Nxe2+ {[%emt 0:01:30]} 29. Nxe2 {[%emt 0:00:09]} Qxc2 {
[%emt 0:00:23]} 30. Rxc2 {[%emt 0:00:06]} Rb3 {[%emt 0:01:11]} 31. Rc7 {
[%emt 0:06:44]} Be8 {[%emt 0:03:13]} 32. Rc3 {[%emt 0:01:02]} Rb1+ {[%emt 0:00:
00]} 33. Rc1 {[%emt 0:02:05]} Rb3 {[%emt 0:00:05]} 34. Rc3 {[%emt 0:00:06]}
Rb1+ {[%emt 0:00:03]} 35. Kh2 {[%emt 0:11:39]} Rb2 {[%emt 0:00:22]} 36. Nf4 {
[%emt 0:00:24]} Rxf2 {[%emt 0:04:18]} 37. Nxd5 {[%emt 0:00:07]} Kf8 {[%emt 0:
00:00]} 38. Rc8 {[%emt 0:01:01]} Rf5 {[%emt 0:00:06]} 39. Nc7 {[%emt 0:00:54]}
Re5 {[%emt 0:00:06]} 40. Ra8 {[%emt 0:00:08]} Rxe3 {[%emt 0:00:48]} 41. Nxe8 {
[%emt 0:30:06]} Rxe8 {[%emt 0:30:04]} 42. Rxa5 {[%emt 0:00:05]} 1/2-1/2

[Event "44th Chess Olympiad Women 2022"]
[Site "Chennai"]
[Date "2022.08.08"]
[Round "10.20"]
[White "Steffensen, Elena"]
[Black "Markantonaki, Haritomeni"]
[Result "0-1"]
[WhiteElo "2044"]
[BlackElo "2154"]
[Annotator "NA RC"]
[PlyCount "88"]
[EventDate "2022.??.??"]
[TimeControl "60"]

1. e4 {[%emt 0:00:05]} c5 {[%emt 0:00:06]} 2. Nc3 {[%emt 0:00:05]} Nc6 {
[%emt 0:00:19]} 3. g3 {[%emt 0:00:21]} g6 {[%emt 0:00:19]} 4. Bg2 {[%emt 0:00:
00]} Bg7 {[%emt 0:00:06]} 5. d3 {[%emt 0:00:08]} d6 {[%emt 0:00:51]} 6. Bg5 {
[%emt 0:01:52]} Rb8 {[%emt 0:03:05]} 7. Nge2 {[%emt 0:00:58]} b5 {[%emt 0:00:
00]} 8. Qd2 {[%emt 0:01:28]} b4 {[%emt 0:04:37]} 9. Nd1 {[%emt 0:00:07]} h6 {
[%emt 0:05:34]} 10. Be3 {[%emt 0:00:12]} Nd4 {[%emt 0:00:32]} 11. c3 {[%emt 0:
00:00]} bxc3 {[%emt 0:05:29]} 12. bxc3 {[%emt 0:01:24]} Nxe2 {[%emt 0:03:35]}
13. Qxe2 {[%emt 0:00:21]} Qa5 {[%emt 0:02:59]} 14. O-O {[%emt 0:01:13]} Ba6 {
[%emt 0:03:01]} 15. Rc1 {[%emt 0:03:14]} Nf6 {[%emt 0:05:52]} 16. f4 {[%emt 0:
00:00]} O-O {[%emt 0:03:00]} 17. e5 {[%emt 0:07:01]} Nd7 {[%emt 0:04:51]} 18.
e6 {[%emt 0:01:48]} fxe6 {[%emt 0:02:43]} 19. Bh3 {[%emt 0:01:58]} Rf5 {
[%emt 0:09:16]} 20. Bd2 {[%emt 0:06:03]} Nf8 {[%emt 0:04:37]} 21. Bxf5 {
[%emt 0:04:40]} gxf5 {[%emt 0:01:53]} 22. g4 {[%emt 0:04:04]} Qxa2 {[%emt 0:00:
00]} 23. gxf5 {[%emt 0:00:59]} exf5 {[%emt 0:00:33]} 24. Rf3 {[%emt 0:02:01]}
Bb7 {[%emt 0:04:51]} 25. Rg3 {[%emt 0:00:53]} Qd5 {[%emt 0:02:34]} 26. Nf2 {
[%emt 0:00:22]} Qf7 {[%emt 0:03:02]} 27. Re1 {[%emt 0:06:41]} Re8 {[%emt 0:00:
00]} 28. Nd1 {[%emt 0:02:44]} Kh7 {[%emt 0:02:29]} 29. Kf2 {[%emt 0:02:52]} e5
{[%emt 0:05:15]} 30. d4 {[%emt 0:08:33]} cxd4 {[%emt 0:04:25]} 31. cxd4 {
[%emt 0:01:18]} exf4 {[%emt 0:04:07]} 32. Qxe8 {[%emt 0:02:32]} fxg3+ {[%emt 0:
00:00]} 33. hxg3 {[%emt 0:02:40]} Qd5 {[%emt 0:00:44]} 34. Rg1 {[%emt 0:01:14]}
Bxd4+ {[%emt 0:01:09]} 35. Be3 {[%emt 0:01:26]} Bg7 {[%emt 0:01:15]} 36. Qh5 {
[%emt 0:02:20]} Ng6 {[%emt 0:00:55]} 37. Nc3 {[%emt 0:02:35]} Qd3 {[%emt 0:00:
00]} 38. Nd1 {[%emt 0:00:46]} Ne5 {[%emt 0:00:38]} 39. Qe2 {[%emt 0:01:23]}
Ng4+ {[%emt 0:00:27]} 40. Ke1 {[%emt 0:01:05]} Qb1 {[%emt 0:00:48]} 41. Qd2 {
[%emt 0:32:26]} Ne5 {[%emt 0:06:42]} 42. Kf2 {[%emt 0:00:00]} Qe4 {[%emt 0:00:
00]} 43. Nc3 {[%emt 0:00:00]} Ng4+ {[%emt 0:01:05]} 44. Ke2 {[%emt 0:00:00]}
Ba6+ {[%emt 0:00:11]} 0-1

[Event "44th Chess Olympiad Women 2022"]
[Site "Chennai"]
[Date "2022.08.08"]
[Round "10.21"]
[White "Berzina, Ilze"]
[Black "Hakimifard, Ghazal"]
[Result "0-1"]
[WhiteElo "2141"]
[BlackElo "2296"]
[Annotator "NA RC"]
[PlyCount "64"]
[EventDate "2022.??.??"]
[TimeControl "60"]

1. e4 {[%emt 0:00:04]} c5 {[%emt 0:00:08]} 2. Nf3 {[%emt 0:00:10]} e6 {[%emt 0:
00:00]} 3. g3 {[%emt 0:00:25]} a6 {[%emt 0:01:01]} 4. Bg2 {[%emt 0:00:34]} b5 {
[%emt 0:00:09]} 5. O-O {[%emt 0:01:21]} Bb7 {[%emt 0:00:17]} 6. Re1 {[%emt 0:
00:00]} Nf6 {[%emt 0:06:53]} 7. e5 {[%emt 0:08:50]} Nd5 {[%emt 0:00:13]} 8. d3
{[%emt 0:11:08]} Be7 {[%emt 0:04:23]} 9. c4 {[%emt 0:01:14]} Nb6 {[%emt 0:00:
00]} 10. Nc3 {[%emt 0:03:55]} bxc4 {[%emt 0:17:27]} 11. dxc4 {[%emt 0:00:15]}
Nxc4 {[%emt 0:00:19]} 12. Qa4 {[%emt 0:08:19]} Nb6 {[%emt 0:01:17]} 13. Qg4 {
[%emt 0:00:32]} Kf8 {[%emt 0:01:54]} 14. Qh5 {[%emt 0:01:56]} Qe8 {[%emt 0:00:
00]} 15. g4 {[%emt 0:24:32]} Nc6 {[%emt 0:08:45]} 16. Ne4 {[%emt 0:02:17]} Nd5
{[%emt 0:02:20]} 17. Bg5 {[%emt 0:03:56]} Nd4 {[%emt 0:11:14]} 18. Nxd4 {
[%emt 0:02:23]} cxd4 {[%emt 0:00:02]} 19. Rad1 {[%emt 0:16:17]} Bxg5 {[%emt 0:
00:00]} 20. Qxg5 {[%emt 0:02:20]} Qe7 {[%emt 0:00:10]} 21. Qd2 {[%emt 0:01:24]}
h5 {[%emt 0:01:10]} 22. g5 {[%emt 0:00:34]} h4 {[%emt 0:00:12]} 23. Qxd4 {
[%emt 0:03:12]} h3 {[%emt 0:01:58]} 24. Bf3 {[%emt 0:00:07]} Rh4 {[%emt 0:00:
00]} 25. Qc5 {[%emt 0:00:41]} Rf4 {[%emt 0:04:12]} 26. Rd3 {[%emt 0:02:56]} Nb4
{[%emt 0:03:22]} 27. Qxe7+ {[%emt 0:01:01]} Kxe7 {[%emt 0:00:01]} 28. Rb3 {
[%emt 0:00:22]} Nc2 {[%emt 0:01:11]} 29. Rc1 {[%emt 0:01:27]} Nd4 {[%emt 0:00:
00]} 30. Rxb7 {[%emt 0:00:26]} Nxf3+ {[%emt 0:00:09]} 31. Kf1 {[%emt 0:00:04]}
Rxe4 {[%emt 0:00:06]} 32. Rd1 {[%emt 0:00:36]} Nxh2+ {[%emt 0:00:23]} 0-1